fUSD/lending_fUSD_20251123
["ID","MTS","AMOUNT","RATE_DAILY","PERIOD"]
[394733551,1763920239885,-500.0,0.00024799,2]
[394733552,1763920239894,-500.0,0.00024799,2]
[394733553,1763920239903,-500.0,0.00024799,2]
[394733554,1763920239912,-256569.183008,0.000248,2]
[394733555,1763920239923,-1290.41243328,0.00024868,2]
[394733556,1763920239933,-374.62039945,0.0002488,2]
[394733557,1763920239943,-285.47253644,0.0002489,2]
[394733558,1763920239954,-150.55,0.0002489,2]
[394733559,1763920239965,-150.55,0.0002489,2]
[394733560,1763920239974,-292.78050892,0.00024899,2]
[394733561,1763920239984,-500.0,0.00024899,2]
[394733562,1763920239994,-500.0,0.00024899,2]
[394733563,1763920240003,-500.0,0.00024899,2]
[394733564,1763920240012,-146386.87271117,0.000249,2]
[394733565,1763920240034,-3800.0,0.000249,2]
[394733566,1763920240058,-701.85012966,0.000249,2]
[394733567,1763920240072,-8528.0,0.000249,2]
[394733568,1763920240084,-20580.37864317,0.000249,2]
[394733569,1763920240094,-450.0,0.00025,2]
[394733570,1763920240103,-300.0,0.00026,14]
[394733571,1763920240112,-4615.31029445,0.00026648,2]
[394733572,1763920240121,-5732.29633988,0.00026658,2]
[394733573,1763920240130,-374.62039945,0.00026883,2]
[394733574,1763920240139,-150.0,0.00027,2]
[394733575,1763920240148,-150.0,0.00027,2]
[394733576,1763920240157,-150.0,0.00027,2]
[394733577,1763920240166,-150.0,0.00027,2]
[394733578,1763920240176,-150.0,0.00027,2]
[394733579,1763920240186,-150.0,0.00027,2]
[394733580,1763920240195,-150.0,0.00027,2]
[394733581,1763920240204,-150.0,0.00027,2]
[394733582,1763920240213,-150.0,0.00027,2]
[394733583,1763920240222,-500.0,0.00027,2]
[394733584,1763920240231,-4615.31029445,0.00027094,2]
[394733585,1763920240240,-3650.8,0.00027123,2]
[394733586,1763920240249,-300.0,0.00027397,2]
[394733587,1763920240258,-409.62,0.000274,7]
[394733588,1763920240267,-245.06,0.000274,7]
[394733589,1763920240276,-1290.41243328,0.0002754,2]
[394733590,1763920240287,-150.0,0.0002775,7]
[394733591,1763920240299,-150.0,0.00028,7]
[394733592,1763920240311,-150.55,0.00028063,2]
[394733593,1763920240322,-4615.31029445,0.00028072,2]
[394733594,1763920240331,-1000.0,0.00028082,2]
[394733595,1763920240340,-477.88929844,0.00028082,2]
[394733596,1763920240349,-150.0,0.000285,7]
[394733597,1763920240360,-150.0,0.000285,7]
[394733598,1763920240369,-150.0,0.000285,7]
[394733599,1763920240381,-4615.31029445,0.00028542,2]
[394733600,1763920240390,-5732.29633988,0.00028548,2]
[394733601,1763920240399,-150.0,0.000286,14]
[394733602,1763920240408,-374.62039945,0.00028885,2]
[394733603,1763920240419,-4615.31029445,0.0002899,2]
[394733604,1763920240429,-150.0,0.00029,7]
[394733605,1763920240438,-6000.0,0.00029,8]
[394733606,1763920240447,-550.0,0.00029,2]
[394733607,1763920240459,-150.0,0.0002925,7]
[394733608,1763920240468,-4615.31029445,0.00029932,2]
[394733609,1763920240477,-6989.59437975,0.00029942,2]
[394733610,1763920240500,-409.43562025,0.00029942,2]
[394733611,1763920240509,-1975.85177094,0.0002999,2]
[394733653,1763920243639,-16485.38940686,0.0002999,2]
[394733654,1763920243649,-150.55,0.0002999,2]
[394733655,1763920243659,-2948.60927094,0.0003,2]
[394733656,1763920243670,-316.16713008,0.0003,2]
[394733657,1763920243682,-478.70511354,0.0003,2]
[394733658,1763920243697,-1716.06723114,0.0003,2]
[394733659,1763920243747,-596.99006424,0.0003,2]
[394733660,1763920243759,-5038.57714924,0.0003,2]
[394733661,1763920243769,-300.0,0.0003,30]
[394733662,1763920243778,-150.0,0.0003,7]
[394733663,1763920243787,-150.00000001,0.0003,7]
[394733664,1763920243797,-150.0,0.0003,7]
[394733666,1763920243806,-150.0,0.0003,7]
[394733667,1763920243815,-150.0,0.0003,7]
[394733668,1763920243825,-150.0,0.0003,7]
[394733669,1763920243836,-402.84790451,0.0003,2]
[394733690,1763920245789,-341.12358141,0.00016899,2]
[394733691,1763920245799,-27918.32116623,0.0003,2]
[394733692,1763920245809,-3004.25337468,0.00030145,2]
[394733693,1763920245819,-1290.41243328,0.00030212,2]
[394733694,1763920245829,-4615.31029445,0.00030307,2]
[394733695,1763920245840,-3316.2776119,0.00030317,2]
[394733696,1763920245851,-4615.31029445,0.00030433,2]
[394733697,1763920245860,-5732.29633988,0.00030438,2]
[394733698,1763920245870,-194.61766004,0.00030443,2]
[394733699,1763920245879,-13845.9308833,0.00030611,2]
[394733700,1763920245889,-6286.38,0.0003062,2]
[394733701,1763920245899,-16287.12,0.0003062,2]
[394733702,1763920245908,-200.0,0.000308,5]
[394733703,1763920245919,-162.44684358,0.000308,5]
[394733704,1763920245928,-500.0,0.000308,5]
[394733705,1763920245939,-215.29932167,0.000308,5]
[394733706,1763920245947,-500.0,0.000308,5]
[394733707,1763920245958,-525.38094523,0.000308,5]
[394733708,1763920245968,-500.0,0.000308,5]
[394733709,1763920245978,-500.0,0.000308,5]
[394733710,1763920245987,-172.25490603,0.000308,5]
[394733711,1763920245997,-500.0,0.000308,5]
[394733712,1763920246007,-500.0,0.000308,5]
[394733713,1763920246017,-634.83080984,0.000308,5]
[394733714,1763920246026,-500.0,0.000308,5]
[394733715,1763920246036,-374.62039945,0.00030888,15]
[394733716,1763920246046,-600.0,0.00031,2]
[394733717,1763920246056,-1000.0,0.00031348,5]
[394733720,1763920246070,-257.4357346,0.00031348,5]
[394733721,1763920246101,-742.5642654,0.00031348,5]
[394733722,1763920246111,-298.42345277,0.00031348,5]
[394733723,1763920246121,-1148.73886154,0.00031348,5]
[394733724,1763920246131,-530.3720115,0.00031348,5]
[394733725,1763920246141,-1000.0,0.00031348,5]
[394733726,1763920246151,-501.54530513,0.00031348,5]
[394733727,1763920246161,-400.0,0.00031485,5]
[394733728,1763920246171,-4615.31029445,0.00031608,2]
[394733729,1763920246181,-3923.77528725,0.00031618,2]
[394733730,1763920246198,-5306.84530165,0.00031618,2]
[394733731,1763920246207,-150.55,0.00031618,2]
[394733732,1763920246217,-10956.36469835,0.00031628,30]
[394733734,1763920246229,-19043.63530165,0.00031628,30]
[394733736,1763920246239,-292.17,0.00031674,2]
[394733737,1763920246249,-409.62,0.000317,7]
[394733738,1763920246259,-245.06,0.000317,30]
[394733739,1763920246269,-1500.0,0.00031896,5]
[394733740,1763920246278,-1500.0,0.00031896,5]
[394733741,1763920246288,-1500.0,0.00031896,5]
[394733742,1763920246298,-8537.45197458,0.00032,8]
[394733743,1763920246308,-150.0,0.000323,14]
[394733744,1763920246317,-5732.29633988,0.00032329,2]
[394733745,1763920246327,-2000.0,0.00032444,5]
[394733746,1763920246337,-500.0,0.00032444,5]
[394733747,1763920246348,-2000.0,0.00032444,5]
[394733748,1763920246357,-341.12,0.00032877,2]
[394733749,1763920246367,-1290.41243328,0.00032884,2]
[394733750,1763920246379,-374.62039945,0.0003289,15]
[394733751,1763920246392,-2111.82969491,0.00032992,5]
[394733752,1763920246402,-469.88770263,0.00032992,5]
[394733753,1763920246411,-650.0,0.00033,2]
[394733754,1763920246425,-1469.0,0.00033807,5]
[394733755,1763920246435,-5732.29633988,0.00034219,2]
[394733756,1763920246444,-500.0,0.00034258,7]
[394733757,1763920246456,-500.0,0.00034258,8]
[394733758,1763920246465,-4937.562,0.00034266,38]
[394733759,1763920246475,-315.596,0.00034266,38]
[394733760,1763920246491,-2000.0,0.000345,2]
[394733761,1763920246501,-374.62039945,0.00034893,15]
[394733762,1763920246511,-302.0,0.00035,60]
[394733763,1763920246522,-3000.0,0.00035,14]
[394733764,1763920246533,-580.339,0.00035187,2]
[394733765,1763920246543,-610.088,0.00035187,2]
[394733766,1763920246553,-1320.0,0.00035187,2]
[394733767,1763920246563,-3436.0,0.00035187,2]
[394733768,1763920246573,-1605.412,0.00035187,2]
[394733769,1763920246583,-822.0,0.00035187,2]
[394733770,1763920246593,-755.042,0.00035187,2]
[394733771,1763920246603,-1256.0,0.00035187,2]
[394733772,1763920246613,-2659.0,0.00035187,2]
[394733773,1763920246627,-244.28,0.00035187,2]
[394733774,1763920246637,-301.72,0.00035187,2]
[394733775,1763920246646,-561.0,0.00035187,2]
[394733776,1763920246656,-6497.0,0.00035187,2]
[394733777,1763920246666,-409.62,0.000352,14]
[394733778,1763920246675,-245.06,0.000352,30]
[394733779,1763920246685,-153.0,0.0003538,2]
[394733780,1763920246695,-1290.41243328,0.00035556,2]
[394733781,1763920246705,-457.63452341,0.00035843,5]
[394733782,1763920246715,-500.0,0.00035843,5]
[394733783,1763920246724,-500.0,0.00035843,5]
[394733784,1763920246733,-199.0,0.0003589,7]
[394733785,1763920246743,-150.0,0.00035976,20]
[394733786,1763920246752,-500.0,0.00035976,2]
[394733787,1763920246762,-1000.0,0.00035987,2]
[394733788,1763920246771,-150.55,0.0003599,2]
[394733789,1763920246781,-1036.94,0.00036,2]
[394733790,1763920246790,-5000.0,0.00036002,2]
[394733791,1763920246801,-2539.32,0.00036012,2]
[394733792,1763920246811,-25000.0,0.00036032,2]
[394733793,1763920246821,-2500.0,0.0003605,2]
[394733794,1763920246831,-938.29,0.00036063,2]
[394733795,1763920246841,-25000.0,0.00036073,2]
[394733796,1763920246851,-5000.0,0.00036076,2]
[394733797,1763920246861,-25000.0,0.00036087,2]
[394733798,1763920246870,-150.55,0.00036094,2]
[394733799,1763920246880,-2539.32,0.00036104,2]
[394733800,1763920246890,-657.76,0.00036104,2]
[394733801,1763920246900,-5732.29633988,0.00036109,2]
[394733802,1763920246909,-4620.93,0.00036126,2]
[394733803,1763920246919,-5000.0,0.00036142,2]
[394733804,1763920246928,-5000.0,0.00036164,2]
[394733805,1763920246939,-5000.0,0.00036194,2]
[394733806,1763920246949,-5000.0,0.0003626,2]
[394733807,1763920246958,-5000.0,0.00036292,2]
[394733808,1763920246968,-500.0,0.00036296,7]
[394733809,1763920246978,-500.0,0.00036296,8]
[394733810,1763920246993,-5000.0,0.00036297,2]
[394733811,1763920247003,-5000.0,0.00036326,2]
[394733812,1763920247013,-1662.26,0.00036353,2]
[394733813,1763920247023,-5000.0,0.00036365,2]
[394733814,1763920247033,-277.18,0.00036368,2]
[394733815,1763920247044,-25000.0,0.00036369,2]
[394733816,1763920247055,-1050.48261231,0.00036391,5]
[394733817,1763920247065,-1000.0,0.00036391,5]
[394733818,1763920247075,-5000.0,0.00036424,2]
[394733819,1763920247084,-150.55,0.00036433,2]
[394733820,1763920247094,-5000.0,0.00036443,2]
[394733821,1763920247104,-25000.0,0.00036444,2]
[394733822,1763920247113,-151.0,0.00036444,31]
[394733823,1763920247122,-153.369125,0.00036444,31]
[394733824,1763920247131,-151.0,0.00036444,31]
[394733825,1763920247142,-151.0,0.00036444,31]
[394733826,1763920247152,-151.0,0.00036444,31]
[394733827,1763920247163,-151.0,0.00036444,31]
[394733828,1763920247175,-153.572783,0.00036444,31]
[394733829,1763920247185,-151.0,0.00036444,31]
[394733830,1763920247195,-151.0,0.00036444,31]
[394733831,1763920247204,-219.775498,0.00036444,31]
[394733832,1763920247214,-151.0,0.00036444,31]
[394733833,1763920247224,-151.0,0.00036444,31]
[394733834,1763920247233,-151.0,0.00036444,31]
[394733835,1763920247243,-151.0,0.00036444,31]
[394733836,1763920247253,-151.0,0.00036444,31]
[394733837,1763920247263,-280.313492,0.00036444,31]
[394733838,1763920247273,-151.0,0.00036444,31]
[394733839,1763920247282,-356.68945,0.00036444,30]
[394733840,1763920247292,-356.68945,0.00036444,30]
[394733841,1763920247302,-4567.59,0.00036472,2]
[394733842,1763920247313,-5000.0,0.0003649,2]
[394733843,1763920247324,-5000.0,0.000365,2]
[394733844,1763920247333,-25000.0,0.0003651,2]
[394733845,1763920247343,-5000.0,0.00036521,2]
[394733846,1763920247352,-5000.0,0.00036522,2]
[394733847,1763920247362,-5000.0,0.00036525,2]
[394733848,1763920247372,-5000.0,0.00036534,2]
[394733849,1763920247387,-150.55,0.00036544,2]
[394733850,1763920247398,-5000.0,0.00036554,2]
[394733851,1763920247407,-5000.0,0.00036555,2]
[394733852,1763920247419,-5000.0,0.00036575,2]
[394733853,1763920247430,-4425.9,0.00036582,2]
[394733854,1763920247441,-25000.0,0.00036595,2]
[394733855,1763920247450,-151.0,0.00036595,31]
[394733856,1763920247461,-212.498648,0.00036595,31]
[394733857,1763920247470,-151.0,0.00036595,31]
[394733858,1763920247479,-151.0,0.00036595,31]
[394733859,1763920247488,-151.0,0.00036595,31]
[394733860,1763920247498,-151.0,0.00036595,30]
[394733861,1763920247509,-151.0,0.00036595,31]
[394733862,1763920247519,-151.0,0.00036595,31]
[394733863,1763920247529,-151.0,0.00036595,31]
[394733864,1763920247539,-151.0,0.00036595,31]
[394733865,1763920247550,-151.0,0.00036595,31]
[394733866,1763920247570,-218.944956,0.00036595,31]
[394733867,1763920247581,-200.0,0.00036597,5]
[394733868,1763920247591,-150.0,0.0003663,30]
[394733869,1763920247601,-5000.0,0.00036635,2]
[394733870,1763920247611,-5000.0,0.00036645,2]
[394733871,1763920247621,-5000.0,0.00036646,2]
[394733872,1763920247632,-613.22,0.00036655,2]
[394733873,1763920247642,-200.0,0.00036662,5]
[394733874,1763920247652,-5000.0,0.00036687,2]
[394733875,1763920247662,-151.0,0.00036687,31]
[394733876,1763920247672,-151.0,0.00036687,31]
[394733877,1763920247682,-151.0,0.00036687,31]
[394733878,1763920247691,-151.0,0.00036687,31]
[394733879,1763920247702,-151.0,0.00036687,31]
[394733880,1763920247712,-151.0,0.00036687,30]
[394733881,1763920247722,-151.0,0.00036687,31]
[394733882,1763920247732,-151.0,0.00036687,31]
[394733883,1763920247742,-151.0,0.00036687,31]
[394733884,1763920247753,-151.0,0.00036687,31]
[394733885,1763920247763,-151.0,0.00036687,31]
[394733886,1763920247773,-151.0,0.00036687,31]
[394733887,1763920247783,-151.0,0.00036687,31]
[394733888,1763920247793,-151.0,0.00036687,31]
[394733889,1763920247803,-151.0,0.00036687,31]
[394733890,1763920247814,-153.042065,0.00036687,31]
[394733891,1763920247824,-5000.0,0.00036691,2]
[394733892,1763920247834,-151.0,0.00036691,31]
[394733893,1763920247844,-151.0,0.00036691,31]
[394733894,1763920247854,-151.0,0.00036691,31]
[394733895,1763920247864,-151.0,0.00036691,31]
[394733896,1763920247875,-151.0,0.00036691,31]
[394733897,1763920247885,-151.0,0.00036691,31]
[394733898,1763920247895,-154.783911,0.00036691,31]
[394733899,1763920247905,-151.0,0.00036691,31]
[394733900,1763920247915,-151.0,0.00036691,31]
[394733901,1763920247925,-151.0,0.00036691,31]
[394733902,1763920247935,-200.714576,0.00036691,31]
[394733903,1763920247945,-151.0,0.00036691,31]
[394733904,1763920247955,-151.0,0.00036691,31]
[394733905,1763920247965,-151.0,0.00036691,31]
[394733906,1763920247976,-151.0,0.00036691,31]
[394733907,1763920247987,-409.62,0.000367,14]
[394733908,1763920247998,-245.06,0.000367,30]
[394733909,1763920248008,-1036.94,0.0003672,2]
[394733910,1763920248018,-200.0,0.00036725,5]
[394733911,1763920248027,-200.0,0.00036725,5]
[394733912,1763920248036,-200.0,0.00036726,5]
[394733913,1763920248046,-200.0,0.00036726,5]
[394733914,1763920248056,-200.0,0.00036726,5]
[394733915,1763920248066,-200.0,0.00036726,5]
[394733916,1763920248079,-5000.0,0.00036731,2]
[394733917,1763920248090,-151.0,0.00036731,31]
[394733918,1763920248101,-151.0,0.00036731,31]
[394733919,1763920248111,-151.0,0.00036731,31]
[394733920,1763920248121,-151.0,0.00036731,31]
[394733921,1763920248137,-151.0,0.00036731,31]
[394733922,1763920248147,-151.0,0.00036731,31]
[394733923,1763920248157,-163.298553,0.00036731,31]
[394733924,1763920248168,-154.290394,0.00036731,31]
[394733925,1763920248178,-151.0,0.00036731,31]
[394733926,1763920248188,-154.290394,0.00036731,31]
[394733927,1763920248198,-154.290394,0.00036731,31]
[394733928,1763920248209,-154.290394,0.00036731,31]
[394733929,1763920248219,-500.0,0.00036747,7]
[394733930,1763920248229,-5000.0,0.00036748,2]
[394733931,1763920248240,-150.55,0.00036798,2]
[394733932,1763920248250,-5000.0,0.00036808,2]
[394733933,1763920248260,-1478.75,0.00036839,2]
[394733934,1763920248270,-5000.0,0.0003685,2]
[394733935,1763920248279,-5000.0,0.00036879,2]
[394733936,1763920248289,-374.62039945,0.00036895,15]
[394733937,1763920248303,-3104.1,0.00036903,2]
[394733938,1763920248314,-6743.42,0.00036905,2]
[394733939,1763920248324,-5000.0,0.00036931,2]
[394733940,1763920248335,-530.63,0.00036938,2]
[394733941,1763920248345,-1002.3597061,0.00036939,5]
[394733942,1763920248355,-5000.0,0.00036949,2]
[394733943,1763920248365,-5000.0,0.00036954,2]
[394733944,1763920248375,-5000.0,0.00036975,2]
[394733945,1763920248392,-1036.94,0.0003744,2]
[394733946,1763920248402,-150.0,0.00037667,7]
[394733947,1763920248412,-150.0,0.00037667,7]
[394733948,1763920248423,-150.0,0.00037667,7]
[394733949,1763920248433,-150.0,0.00037667,7]
[394733950,1763920248444,-150.0,0.00037667,7]
[394733951,1763920248455,-150.0,0.00037667,7]
[394733952,1763920248465,-500.0,0.00037808,120]
[394733953,1763920248475,-3000.0,0.00037808,7]
[394733954,1763920248485,-5732.29633988,0.00037999,2]
[394733955,1763920248495,-223.019501,0.00037999,15]
[394733956,1763920248509,-153.738181,0.00037999,31]
[394733957,1763920248519,-151.0,0.00037999,31]
[394733958,1763920248529,-151.0,0.00037999,31]
[394733959,1763920248539,-151.0,0.00037999,31]
[394733960,1763920248549,-151.0,0.00037999,31]
[394733961,1763920248559,-151.0,0.00037999,30]
[394733962,1763920248569,-151.0,0.00037999,30]
[394733963,1763920248579,-151.0,0.00037999,30]
[394733964,1763920248589,-275.042465,0.00037999,30]
[394733965,1763920248600,-151.0,0.00037999,31]
[394733966,1763920248611,-871.78,0.00038,5]
[394733967,1763920248622,-2000.0,0.00038,2]
[394733968,1763920248632,-467.59,0.00038,8]
[394733969,1763920248642,-3000.0,0.00038,10]
[394733970,1763920248653,-187.0,0.00038034,20]
[394733971,1763920248664,-1666.47246746,0.00038082,30]
[394733972,1763920248674,-164.454298,0.00038082,31]
[394733973,1763920248684,-151.0,0.00038082,31]
[394733974,1763920248698,-161.313959,0.00038082,14]
[394733975,1763920248708,-151.0,0.00038082,31]
[394733976,1763920248718,-500.0,0.00038082,120]
[394733977,1763920248728,-1200.0,0.00038082,7]
[394733978,1763920248738,-1036.94,0.0003816,2]
[394733979,1763920248748,-576.0,0.00038187,2]
[394733980,1763920248758,-609.0,0.00038187,2]
[394733981,1763920248768,-479.59341907,0.00038187,2]
[394733983,1763920262138,300.0,0.00021822,119]
[394733984,1763920262272,300.0,0.00021308,119]
[394733985,1763920265352,200.0,0.00021822,120]
[394733986,1763920265548,200.0,0.00021308,120]
[394733987,1763920268066,195.0,0.00021822,120]
[394734185,1763921013873,541.62,0.00010863,2]
[394734186,1763921014059,541.62,0.00011435,2]
[394734187,1763921014296,541.62,0.00012006,2]
[394734188,1763921014524,541.62,0.00012578,2]
[394734189,1763921014697,541.62,0.0001315,2]
[394734190,1763921014899,541.62,0.00013722,2]
[394734191,1763921015104,541.62,0.00014293,2]
[394734192,1763921015326,541.62,0.00014865,2]
[394734193,1763921015571,541.62,0.00015437,2]
[394734259,1763921431656,-271.037225,0.00016008,2]
[394734261,1763921431668,-270.582775,0.00016008,2]
[394734263,1763921431678,-195.0,0.00016151,2]
[394734266,1763921431688,-18.53,0.00016294,2]
[394734275,1763921431762,-231.47,0.00016294,2]
[394734277,1763921431776,-342.08583114,0.00016533,2]
[394734279,1763921431785,-410.57791055,0.0001658,2]
[394734280,1763921431818,-131.04208945,0.0001658,2]
[394734281,1763921431828,-300.0,0.00016633,2]
[394734282,1763921431838,-300.0,0.00016633,2]
[394734283,1763921431850,-300.0,0.00016633,2]
[394734284,1763921431862,-300.0,0.00016633,2]
[394734285,1763921431871,-250.0,0.00017132,2]
[394734286,1763921431881,-541.62,0.00017152,2]
[394734287,1763921431891,-1200.0,0.00017608,2]
[394734288,1763921431901,-250.0,0.00017609,2]
[394734289,1763921431911,-300.0,0.00017609,2]
[394734290,1763921431920,-195.0,0.00017609,2]
[394734291,1763921431930,-541.62,0.00017724,2]
[394734292,1763921431939,-300.0,0.00017999,2]
[394734293,1763921431949,-241.54065099,0.00018,2]
[394734294,1763921431959,-541.62,0.00018295,2]
[394734295,1763921431968,-541.62,0.00018867,2]
[394734296,1763921431978,-342.08583114,0.00019243,2]
[394734297,1763921431988,-480.0,0.00019315,2]
[394734298,1763921431998,-541.62,0.00019439,2]
[394734299,1763921432007,-420.0,0.00019639,2]
[394734300,1763921432017,-541.62,0.0002001,2]
[394734301,1763921432026,-200.0,0.000201,2]
[394734302,1763921432036,-541.62,0.00020582,2]
[394734303,1763921432046,-12430.09,0.00021068,2]
[394734304,1763921432056,-1500.0,0.00021091,2]
[394734305,1763921432065,-2751.0,0.00021106,2]
[394734306,1763921432075,-250.0,0.00021152,2]
[394734307,1763921432085,-541.62,0.00021154,2]
[394734308,1763921432095,-300.0,0.00021392,2]
[394734309,1763921432104,-500.0,0.00021404,2]
[394734310,1763921432114,-587.0,0.00021428,2]
[394734311,1763921432123,-541.62,0.00021726,2]
[394734312,1763921432133,-10085.58,0.00021854,2]
[394734313,1763921432142,-150.0,0.00021873,2]
[394734314,1763921432151,-342.08583114,0.00021952,2]
[394734315,1763921432162,-469.13,0.00021965,2]
[394734316,1763921432172,-5000.0,0.00021965,2]
[394734317,1763921432182,-150.0,0.00022052,2]
[394734318,1763921432192,-190.52,0.00022066,2]
[394734319,1763921432201,-3381.58,0.00022432,2]
[394734320,1763921432211,-500.0,0.00022673,2]
[394734321,1763921432220,-502.15487194,0.00022673,2]
[394734322,1763921432228,-506.79679862,0.00022673,2]
[394734323,1763921432236,-500.0,0.00022673,2]
[394734324,1763921432243,-491.81969162,0.00022673,2]
[394734325,1763921432251,-500.0,0.00022677,2]
[394734326,1763921432257,-244.83912505,0.00022677,2]
[394734327,1763921432265,-497.01765253,0.00022677,2]
[394734328,1763921432271,-500.0,0.00022677,2]
[394734329,1763921432277,-500.0,0.00022677,2]
[394734330,1763921432283,-500.0,0.00022677,2]
[394734331,1763921432290,-500.0,0.00022677,2]
[394734332,1763921432297,-500.0,0.00022677,2]
[394734333,1763921432304,-500.0,0.00022677,2]
[394734334,1763921432312,-500.0,0.00022677,2]
[394734335,1763921432319,-500.0,0.00022677,2]
[394734336,1763921432326,-500.0,0.00022677,2]
[394734337,1763921432334,-500.0,0.00022677,2]
[394734338,1763921432344,-500.0,0.00022677,2]
[394734339,1763921432353,-500.0,0.00022677,2]
[394734340,1763921432363,-500.0,0.00022677,2]
[394734341,1763921432372,-500.0,0.00022677,2]
[394734342,1763921432387,-500.0,0.00022677,2]
[394734343,1763921432396,-500.0,0.00022677,2]
[394734344,1763921432405,-500.0,0.00022677,2]
[394734345,1763921432414,-500.0,0.00022677,2]
[394734346,1763921432423,-500.0,0.00022677,2]
[394734347,1763921432432,-500.0,0.00022677,2]
[394734348,1763921432441,-500.0,0.00022677,2]
[394734349,1763921432451,-500.0,0.00022677,2]
[394734350,1763921432459,-500.0,0.00022677,2]
[394734351,1763921432468,-500.0,0.00022677,2]
[394734352,1763921432478,-500.0,0.00022677,2]
[394734353,1763921432487,-481.29235872,0.00022677,2]
[394734354,1763921432497,-500.0,0.00022677,2]
[394734355,1763921432506,-500.0,0.00022677,2]
[394734356,1763921432516,-500.0,0.00022677,2]
[394734357,1763921432525,-500.0,0.00022677,2]
[394734358,1763921432534,-500.0,0.00022677,2]
[394734359,1763921432543,-500.0,0.00022677,2]
[394734360,1763921432552,-500.0,0.00022677,2]
[394734361,1763921432560,-500.0,0.00022677,2]
[394734362,1763921432570,-500.0,0.00022677,2]
[394734363,1763921432581,-500.0,0.00022677,2]
[394734364,1763921432591,-500.0,0.00022677,2]
[394734365,1763921432601,-209.98170648,0.00022677,2]
[394734366,1763921432611,-500.0,0.00022677,2]
[394734367,1763921432621,-32837.73441757,0.00022678,2]
[394734370,1763921437688,-446.6875241,0.00022662,2]
[394734371,1763921437780,-896.94,0.00022662,2]
[394734372,1763921437791,-9217.20863165,0.00022662,2]
[394734373,1763921437800,-624113.38230607,0.00022678,2]
[394734374,1763921437831,-14798.59632085,0.00022678,2]
[394734375,1763921437852,-4100.14377556,0.00022678,2]
[394734379,1763921439800,-13234.25867916,0.00022678,2]
[394734380,1763921439811,-2707.85170041,0.00022678,2]
[394734381,1763921439854,-422.89223244,0.00022678,2]
[394734382,1763921439867,-67785.14056794,0.00022678,2]
[394734383,1763921439877,-300.0,0.00022762,2]
[394734384,1763921439887,-1000.0,0.00022774,2]
[394734385,1763921439898,-21367.668,0.00022777,2]
[394734386,1763921439908,-2500.0,0.00022777,2]
[394734387,1763921439918,-160.55159979,0.00022778,2]
[394734388,1763921439928,-1791.10183063,0.00022778,2]
[394734389,1763921439937,-9142.91155175,0.00022875,2]
[394734390,1763921439947,-500.0,0.00022876,2]
[394734391,1763921439956,-500.0,0.00022876,2]
[394734392,1763921439966,-500.0,0.00022876,2]
[394734393,1763921439976,-500.0,0.00022876,2]
[394734394,1763921439985,-500.0,0.00022876,2]
[394734395,1763921439995,-500.0,0.00022876,2]
[394734396,1763921440008,-500.0,0.00022876,2]
[394734397,1763921440018,-500.0,0.00022876,2]
[394734398,1763921440027,-500.0,0.00022876,2]